[Event "Titled Tuesday Blitz November 01 Early 2022"]
[White "Goltseva, Ekaterina"]
[Black "Rohith Krishna S"]
[WhiteFideId "24173770"]
[BlackFideId "46617051"]
[WhiteElo "2557"]
[BlackElo "2760"]
[Result "0-1"]
[Round "06"]
[TimeControl "180+1"]
[Date "2022.11.02"]
[WhiteClock "0:00:04"]
[BlackClock "0:00:12"]

1. d4 {[%clk 0:02:07]}  d5 {[%clk 0:02:52]} 2. c4 {[%clk 0:02:07]}  e6 {[%clk 0:02:52]} 3. Nf3 {[%clk 0:02:06]}  Nf6 {[%clk 0:02:53]} 4. g3 {[%clk 0:02:06]}  Bb4+ {[%clk 0:02:53]} 5. Nc3 {[%clk 0:02:06]}  Be7 {[%clk 0:02:53]} 6. Bg2 {[%clk 0:02:06]}  O-O {[%clk 0:02:54]} 7. O-O {[%clk 0:02:06]}  dxc4 {[%clk 0:02:50]} 8. Ne5 {[%clk 0:02:06]}  Nc6 {[%clk 0:02:48]} 9. Bxc6 {[%clk 0:02:04]}  bxc6 {[%clk 0:02:48]} 10. Nxc6 {[%clk 0:02:05]}  Qe8 {[%clk 0:02:48]} 11. Nxe7+ {[%clk 0:02:05]}  Qxe7 {[%clk 0:02:48]} 12. Qa4 {[%clk 0:02:06]}  c5 {[%clk 0:02:48]} 13. Qxc4 {[%clk 0:02:06]}  cxd4 {[%clk 0:02:48]} 14. Qxd4 {[%clk 0:02:07]}  Rd8 {[%clk 0:02:48]} 15. Qh4 {[%clk 0:02:05]}  h6 {[%clk 0:02:43]} 16. Be3 {[%clk 0:01:57]}  Rb8 {[%clk 0:02:25]} 17. Ne4 {[%clk 0:01:45]}  Nd5 {[%clk 0:02:05]} 18. Qxe7 {[%clk 0:01:40]}  Nxe7 {[%clk 0:02:06]} 19. Bxa7 {[%clk 0:01:32]}  Rxb2 {[%clk 0:02:04]} 20. e3 {[%clk 0:01:28]}  Bb7 {[%clk 0:02:01]} 21. Nc3 {[%clk 0:01:24]}  Bf3 {[%clk 0:02:01]} 22. a4 {[%clk 0:01:18]}  h5 {[%clk 0:01:58]} 23. Nb5 {[%clk 0:01:16]}  Rdd2 {[%clk 0:01:43]} 24. Nd4 {[%clk 0:01:13]}  Be4 {[%clk 0:01:22]} 25. Bc5 {[%clk 0:00:48]}  Nd5 {[%clk 0:01:16]} 26. Ba3 {[%clk 0:00:45]}  Ra2 {[%clk 0:01:14]} 27. Nb3 {[%clk 0:00:25]}  Rdc2 {[%clk 0:01:09]} 28. Rxa2 {[%clk 0:00:23]}  Rxa2 {[%clk 0:01:08]} 29. Ra1 {[%clk 0:00:24]}  Rc2 {[%clk 0:01:06]} 30. Nd4 {[%clk 0:00:23]}  Rd2 {[%clk 0:01:06]} 31. a5 {[%clk 0:00:22]}  h4 {[%clk 0:01:03]} 32. gxh4 {[%clk 0:00:21]}  e5 {[%clk 0:00:59]} 33. Nb3 {[%clk 0:00:21]}  Rc2 {[%clk 0:00:58]} 34. Nc5 {[%clk 0:00:20]}  Bf3 {[%clk 0:00:58]} 35. a6 {[%clk 0:00:20]}  Kh7 {[%clk 0:00:28]} 36. a7 {[%clk 0:00:20]}  Nf6 {[%clk 0:00:28]} 37. e4 {[%clk 0:00:16]}  Nxe4 {[%clk 0:00:19]} 38. a8=Q {[%clk 0:00:16]}  Ng5 {[%clk 0:00:19]} 39. Qa4 {[%clk 0:00:09]}  Nh3+ {[%clk 0:00:19]} 40. Kf1 {[%clk 0:00:09]}  Rxf2+ {[%clk 0:00:19]} 41. Ke1 {[%clk 0:00:10]}  Re2+ {[%clk 0:00:20]} 42. Kd1 {[%clk 0:00:07]}  Re4+ {[%clk 0:00:20]} 43. Kc1 {[%clk 0:00:08]}  Re1+ {[%clk 0:00:18]} 44. Kb2 {[%clk 0:00:07]}  Re2+ {[%clk 0:00:19]} 45. Kb3 {[%clk 0:00:06]}  Bd5+ {[%clk 0:00:18]} 46. Kc3 {[%clk 0:00:06]}  Re3+ {[%clk 0:00:17]} 47. Kd2 {[%clk 0:00:06]}  Rf3 {[%clk 0:00:18]} 48. Qg4 {[%clk 0:00:03]}  Rf2+ {[%clk 0:00:17]} 49. Ke1 {[%clk 0:00:04]}  Rxh2 {[%clk 0:00:17]} 50. Rd1 {[%clk 0:00:03]}  Rh1+ {[%clk 0:00:16]} 51. Kd2 {[%clk 0:00:03]}  Rh2+ {[%clk 0:00:16]} 52. Kc1 {[%clk 0:00:04]}  Nf4 {[%clk 0:00:07]} 53. Rd2 {[%clk 0:00:03]}  Rh1+ {[%clk 0:00:07]} 54. Kb2 {[%clk 0:00:03]}  Bc4 {[%clk 0:00:05]} 55. Ne4 {[%clk 0:00:02]}  f6 {[%clk 0:00:04]} 56. Nc3 {[%clk 0:00:03]}  Be6 {[%clk 0:00:05]} 57. Ne2 {[%clk 0:00:03]}  Bxg4 {[%clk 0:00:04]} 58. Nxf4 {[%clk 0:00:04]}  exf4 {[%clk 0:00:05]} 59. Rf2 {[%clk 0:00:04]}  f3 {[%clk 0:00:06]} 60. Bd6 {[%clk 0:00:04]}  Rxh4 {[%clk 0:00:06]} 61. Bg3 {[%clk 0:00:04]}  Rh3 {[%clk 0:00:07]} 62. Bf4 {[%clk 0:00:05]}  Kg6 {[%clk 0:00:07]} 63. Be3 {[%clk 0:00:04]}  Kf5 {[%clk 0:00:08]} 64. Bc5 {[%clk 0:00:03]}  Ke4 {[%clk 0:00:08]} 65. Bb6 {[%clk 0:00:03]}  Rg3 {[%clk 0:00:09]} 66. Ba7 {[%clk 0:00:03]}  Kd3 {[%clk 0:00:09]} 67. Bb8 {[%clk 0:00:02]}  Rg2 {[%clk 0:00:10]} 68. Ba7 {[%clk 0:00:03]}  Rxf2+ {[%clk 0:00:10]} 69. Bxf2 {[%clk 0:00:04]}  Ke2 {[%clk 0:00:11]} 70. Be3 {[%clk 0:00:04]}  f2 {[%clk 0:00:12]} 0-1


[Site "https://www.chess.com"]

[Event "Titled Tuesday Blitz November 01 Early 2022"]
[White "Grave, Jacob Templen"]
[Black "Luxama, Jacques Muller"]
[WhiteFideId "1542656"]
[BlackFideId "11900113"]
[WhiteElo "2121"]
[BlackElo "1931"]
[Result "1-0"]
[Round "06"]
[TimeControl "180+1"]
[Date "2022.11.02"]
[WhiteClock "0:00:01"]
[BlackClock "0:00:01"]

1. b3 {[%clk 0:02:54]}  e5 {[%clk 0:02:57]} 2. Bb2 {[%clk 0:02:53]}  d6 {[%clk 0:02:57]} 3. Nf3 {[%clk 0:02:38]}  f5 {[%clk 0:02:56]} 4. c4 {[%clk 0:02:20]}  Nf6 {[%clk 0:02:55]} 5. g3 {[%clk 0:02:14]}  g6 {[%clk 0:02:52]} 6. Bg2 {[%clk 0:02:14]}  Bg7 {[%clk 0:02:52]} 7. O-O {[%clk 0:02:14]}  O-O {[%clk 0:02:53]} 8. d3 {[%clk 0:02:03]}  a5 {[%clk 0:02:51]} 9. Nc3 {[%clk 0:01:56]}  Nc6 {[%clk 0:02:41]} 10. Qc2 {[%clk 0:01:52]}  h6 {[%clk 0:02:37]} 11. a3 {[%clk 0:01:45]}  Qe8 {[%clk 0:02:35]} 12. Nd5 {[%clk 0:01:43]}  Qf7 {[%clk 0:02:31]} 13. e4 {[%clk 0:01:23]}  Be6 {[%clk 0:02:21]} 14. Qd2 {[%clk 0:01:05]}  fxe4 {[%clk 0:02:07]} 15. Nxf6+ {[%clk 0:01:04]}  Qxf6 {[%clk 0:02:03]} 16. dxe4 {[%clk 0:01:05]}  g5 {[%clk 0:01:52]} 17. Ne1 {[%clk 0:00:46]}  a4 {[%clk 0:01:50]} 18. Rc1 {[%clk 0:00:38]}  axb3 {[%clk 0:01:47]} 19. f4 {[%clk 0:00:34]}  gxf4 {[%clk 0:01:32]} 20. gxf4 {[%clk 0:00:30]}  Nd4 {[%clk 0:01:21]} 21. Nd3 {[%clk 0:00:18]}  Qh4 {[%clk 0:01:03]} 22. Bxd4 {[%clk 0:00:13]}  exd4 {[%clk 0:01:01]} 23. f5 {[%clk 0:00:14]}  Bf7 {[%clk 0:00:55]} 24. Rf4 {[%clk 0:00:12]}  Qf6 {[%clk 0:00:50]} 25. Qb4 {[%clk 0:00:12]}  h5 {[%clk 0:00:44]} 26. Rf3 {[%clk 0:00:09]}  Bh6 {[%clk 0:00:41]} 27. Rcf1 {[%clk 0:00:08]}  b6 {[%clk 0:00:20]} 28. Qxb3 {[%clk 0:00:08]}  Kh8 {[%clk 0:00:18]} 29. Rg3 {[%clk 0:00:06]}  Rae8 {[%clk 0:00:16]} 30. Re1 {[%clk 0:00:03]}  Be3+ {[%clk 0:00:15]} 31. Kh1 {[%clk 0:00:04]}  Rg8 {[%clk 0:00:14]} 32. Qb2 {[%clk 0:00:03]}  Rxg3 {[%clk 0:00:13]} 33. hxg3 {[%clk 0:00:03]}  Rg8 {[%clk 0:00:12]} 34. Rxe3 {[%clk 0:00:03]}  c5 {[%clk 0:00:05]} 35. Rf3 {[%clk 0:00:02]}  h4 {[%clk 0:00:03]} 36. gxh4 {[%clk 0:00:02]}  Rg4 {[%clk 0:00:03]} 37. Rh3 {[%clk 0:00:01]}  Rxh4 {[%clk 0:00:03]} 38. Qf2 {[%clk 0:00:01]}  Rxh3+ {[%clk 0:00:03]} 39. Bxh3 {[%clk 0:00:02]}  Qg5 {[%clk 0:00:01]} 40. Qf4 {[%clk 0:00:01]} 1-0


[Site "https://www.chess.com"]

[Event "Titled Tuesday Blitz November 01 Early 2022"]
[White "Grot, Blazej"]
[Black "Winterberg, Lukas"]
[WhiteFideId "21835845"]
[BlackFideId "24622702"]
[WhiteElo "1739"]
[BlackElo "2349"]
[Result "0-1"]
[Round "06"]
[TimeControl "180+1"]
[Date "2022.11.02"]
[WhiteClock "0:01:25"]
[BlackClock "0:00:33"]

1. e4 {[%clk 0:03:00]}  c6 {[%clk 0:02:59]} 2. d4 {[%clk 0:02:59]}  d5 {[%clk 0:02:58]} 3. Nd2 {[%clk 0:03:00]}  dxe4 {[%clk 0:02:58]} 4. Nxe4 {[%clk 0:03:01]}  Bf5 {[%clk 0:02:58]} 5. Ng3 {[%clk 0:03:01]}  Bg6 {[%clk 0:02:58]} 6. c3 {[%clk 0:03:01]}  Nd7 {[%clk 0:02:57]} 7. Nh3 {[%clk 0:03:01]}  e5 {[%clk 0:02:55]} 8. dxe5 {[%clk 0:02:58]}  Nxe5 {[%clk 0:02:53]} 9. Qe2 {[%clk 0:02:55]}  Qe7 {[%clk 0:02:53]} 10. Nf4 {[%clk 0:02:52]}  O-O-O {[%clk 0:02:49]} 11. Be3 {[%clk 0:02:49]}  Nd3+ {[%clk 0:02:46]} 12. Nxd3 {[%clk 0:02:49]}  Bxd3 {[%clk 0:02:47]} 13. Qg4+ {[%clk 0:02:47]}  Qd7 {[%clk 0:02:35]} 14. Qxd7+ {[%clk 0:02:41]}  Rxd7 {[%clk 0:02:36]} 15. Bxd3 {[%clk 0:02:41]}  Rxd3 {[%clk 0:02:36]} 16. Bxa7 {[%clk 0:02:39]}  c5 {[%clk 0:02:30]} 17. Ne4 {[%clk 0:02:35]}  Rd5 {[%clk 0:02:29]} 18. Ke2 {[%clk 0:02:31]}  f5 {[%clk 0:02:28]} 19. Ng3 {[%clk 0:02:28]}  Nf6 {[%clk 0:01:56]} 20. b4 {[%clk 0:02:24]}  f4 {[%clk 0:01:50]} 21. Nf1 {[%clk 0:02:20]}  Bd6 {[%clk 0:01:46]} 22. bxc5 {[%clk 0:02:19]}  Re8+ {[%clk 0:01:44]} 23. Kf3 {[%clk 0:02:14]}  Rd3+ {[%clk 0:01:42]} 24. Ne3 {[%clk 0:02:13]}  Bc7 {[%clk 0:01:31]} 25. Rhd1 {[%clk 0:02:05]}  Rxc3 {[%clk 0:01:18]} 26. Rac1 {[%clk 0:02:00]}  Ra3 {[%clk 0:01:15]} 27. Bb6 {[%clk 0:01:59]}  fxe3 {[%clk 0:01:12]} 28. fxe3 {[%clk 0:01:58]}  Raxe3+ {[%clk 0:01:07]} 29. Kf2 {[%clk 0:01:55]}  Ng4+ {[%clk 0:01:05]} 30. Kg1 {[%clk 0:01:54]}  Bxh2+ {[%clk 0:01:03]} 31. Kh1 {[%clk 0:01:51]}  Bg3 {[%clk 0:01:03]} 32. Kg1 {[%clk 0:01:34]}  R3e6 {[%clk 0:00:47]} 33. c6 {[%clk 0:01:27]}  bxc6 {[%clk 0:00:44]} 34. Bc5 {[%clk 0:01:26]}  Re1+ {[%clk 0:00:33]} 35. Rxe1 {[%clk 0:01:25]}  Rxe1+ {[%clk 0:00:34]} 36. Rxe1 {[%clk 0:01:26]}  Bxe1 {[%clk 0:00:35]} 37. a4 {[%clk 0:01:25]}  Kb7 {[%clk 0:00:33]} 0-1


[Site "https://www.chess.com"]

[Event "Titled Tuesday Blitz November 01 Early 2022"]
[White "Gubajdullin, Alexei"]
[Black "Zakhartsov, Vladimir"]
[WhiteFideId "4141202"]
[BlackFideId "4145097"]
[WhiteElo "2622"]
[BlackElo "2803"]
[Result "0-1"]
[Round "06"]
[TimeControl "180+1"]
[Date "2022.11.02"]
[WhiteClock "0:00:01"]
[BlackClock "0:00:04"]

1. d4 {[%clk 0:03:00]}  Nf6 {[%clk 0:02:56]} 2. Nf3 {[%clk 0:03:00]}  e6 {[%clk 0:02:54]} 3. Bf4 {[%clk 0:03:00]}  c5 {[%clk 0:02:53]} 4. e3 {[%clk 0:03:00]}  d5 {[%clk 0:02:52]} 5. Nbd2 {[%clk 0:02:59]}  Bd6 {[%clk 0:02:52]} 6. Bg3 {[%clk 0:02:58]}  O-O {[%clk 0:02:52]} 7. c3 {[%clk 0:02:58]}  b6 {[%clk 0:02:51]} 8. Bd3 {[%clk 0:02:53]}  Ba6 {[%clk 0:02:51]} 9. Bxa6 {[%clk 0:02:46]}  Nxa6 {[%clk 0:02:52]} 10. a4 {[%clk 0:02:47]}  Nb8 {[%clk 0:02:39]} 11. a5 {[%clk 0:02:45]}  b5 {[%clk 0:02:32]} 12. Bxd6 {[%clk 0:02:39]}  Qxd6 {[%clk 0:02:33]} 13. dxc5 {[%clk 0:02:28]}  Qxc5 {[%clk 0:02:33]} 14. Ne5 {[%clk 0:02:24]}  a6 {[%clk 0:02:23]} 15. Qe2 {[%clk 0:02:15]}  Qc7 {[%clk 0:02:22]} 16. Nd3 {[%clk 0:02:00]}  Nc6 {[%clk 0:02:21]} 17. Nb3 {[%clk 0:02:00]}  Ne4 {[%clk 0:02:07]} 18. f3 {[%clk 0:01:58]}  Nd6 {[%clk 0:02:07]} 19. e4 {[%clk 0:01:56]}  dxe4 {[%clk 0:02:02]} 20. fxe4 {[%clk 0:01:56]}  Nc4 {[%clk 0:02:02]} 21. O-O {[%clk 0:01:44]}  N6xa5 {[%clk 0:02:00]} 22. Nxa5 {[%clk 0:01:41]}  Nxa5 {[%clk 0:02:01]} 23. e5 {[%clk 0:01:37]}  Nc4 {[%clk 0:01:42]} 24. Rf3 {[%clk 0:01:32]}  Rad8 {[%clk 0:01:41]} 25. Rg3 {[%clk 0:01:28]}  g6 {[%clk 0:01:37]} 26. Re1 {[%clk 0:01:24]}  Rd5 {[%clk 0:01:37]} 27. b3 {[%clk 0:01:06]}  Na5 {[%clk 0:01:37]} 28. Nf4 {[%clk 0:01:05]}  Rdd8 {[%clk 0:01:34]} 29. Nh5 {[%clk 0:01:05]}  f5 {[%clk 0:00:56]} 30. exf6 {[%clk 0:01:00]}  Kh8 {[%clk 0:00:55]} 31. Ng7 {[%clk 0:00:55]}  Rxf6 {[%clk 0:00:54]} 32. Nxe6 {[%clk 0:00:46]}  Qb6+ {[%clk 0:00:40]} 33. Nd4 {[%clk 0:00:34]}  Nxb3 {[%clk 0:00:35]} 34. Rg4 {[%clk 0:00:12]}  Nxd4 {[%clk 0:00:33]} 35. cxd4 {[%clk 0:00:11]}  b4 {[%clk 0:00:26]} 36. Qe7 {[%clk 0:00:11]}  Rdf8 {[%clk 0:00:19]} 37. h4 {[%clk 0:00:10]}  b3 {[%clk 0:00:18]} 38. h5 {[%clk 0:00:10]}  R6f7 {[%clk 0:00:16]} 39. Qe5+ {[%clk 0:00:10]}  Qf6 {[%clk 0:00:16]} 40. hxg6 {[%clk 0:00:09]}  hxg6 {[%clk 0:00:14]} 41. Rxg6 {[%clk 0:00:10]}  Qxe5 {[%clk 0:00:14]} 42. dxe5 {[%clk 0:00:10]}  a5 {[%clk 0:00:13]} 43. Rb6 {[%clk 0:00:10]}  a4 {[%clk 0:00:12]} 44. Rb4 {[%clk 0:00:09]}  Rf4 {[%clk 0:00:12]} 45. Rb7 {[%clk 0:00:07]}  Re8 {[%clk 0:00:06]} 46. e6 {[%clk 0:00:07]}  Rf6 {[%clk 0:00:06]} 47. e7 {[%clk 0:00:07]}  Ra6 {[%clk 0:00:06]} 48. Re3 {[%clk 0:00:06]}  Kg7 {[%clk 0:00:06]} 49. Rf3 {[%clk 0:00:04]}  Re6 {[%clk 0:00:03]} 50. Rf1 {[%clk 0:00:04]}  R6xe7 {[%clk 0:00:03]} 51. Rb4 {[%clk 0:00:03]}  Re4 {[%clk 0:00:03]} 52. Rb7+ {[%clk 0:00:02]}  R8e7 {[%clk 0:00:04]} 53. Rb8 {[%clk 0:00:02]}  Rf7 {[%clk 0:00:04]} 54. Ra1 {[%clk 0:00:02]}  Rfe7 {[%clk 0:00:03]} 55. Ra3 {[%clk 0:00:02]}  Rd4 {[%clk 0:00:02]} 56. Kh2 {[%clk 0:00:02]}  Kf6 {[%clk 0:00:02]} 57. Rb5 {[%clk 0:00:02]}  Re5 {[%clk 0:00:02]} 58. Rb6+ {[%clk 0:00:02]}  Kf5 {[%clk 0:00:03]} 59. Ra6 {[%clk 0:00:02]}  Ree4 {[%clk 0:00:03]} 60. Rb6 {[%clk 0:00:01]}  Kf4 {[%clk 0:00:03]} 61. Rb8 {[%clk 0:00:01]}  Ke3 {[%clk 0:00:04]} 62. Rb7 {[%clk 0:00:01]}  Kd3 {[%clk 0:00:04]} 63. Ra1 {[%clk 0:00:01]}  Kc3 {[%clk 0:00:04]} 0-1


[Site "https://www.chess.com"]

[Event "Titled Tuesday Blitz November 01 Early 2022"]
[White "Gulevich, Artem"]
[Black "Parkhov, Yair"]
[WhiteFideId "24119580"]
[BlackFideId "2813408"]
[WhiteElo "2218"]
[BlackElo "2384"]
[Result "0-1"]
[Round "06"]
[TimeControl "180+1"]
[Date "2022.11.02"]
[WhiteClock "0:00:05"]
[BlackClock "0:00:11"]

1. Nf3 {[%clk 0:03:00]}  c6 {[%clk 0:02:59]} 2. b3 {[%clk 0:02:59]}  d5 {[%clk 0:02:58]} 3. Bb2 {[%clk 0:03:00]}  Bg4 {[%clk 0:02:58]} 4. e3 {[%clk 0:03:00]}  Nd7 {[%clk 0:02:58]} 5. d4 {[%clk 0:03:01]}  Ngf6 {[%clk 0:02:58]} 6. Be2 {[%clk 0:03:01]}  e6 {[%clk 0:02:58]} 7. Nbd2 {[%clk 0:03:02]}  Bd6 {[%clk 0:02:58]} 8. O-O {[%clk 0:03:03]}  O-O {[%clk 0:02:58]} 9. c4 {[%clk 0:03:03]}  Qe7 {[%clk 0:02:55]} 10. Re1 {[%clk 0:03:02]}  Rad8 {[%clk 0:02:49]} 11. Qc2 {[%clk 0:02:52]}  Bf5 {[%clk 0:02:43]} 12. Bd3 {[%clk 0:02:52]}  Bxd3 {[%clk 0:02:42]} 13. Qxd3 {[%clk 0:02:53]}  e5 {[%clk 0:02:38]} 14. dxe5 {[%clk 0:02:49]}  Nxe5 {[%clk 0:02:39]} 15. Nxe5 {[%clk 0:02:49]}  Bxe5 {[%clk 0:02:39]} 16. Bxe5 {[%clk 0:02:46]}  Qxe5 {[%clk 0:02:40]} 17. Nf3 {[%clk 0:02:45]}  Qe4 {[%clk 0:02:40]} 18. Qe2 {[%clk 0:02:23]}  dxc4 {[%clk 0:02:34]} 19. Nd2 {[%clk 0:02:23]}  Qd3 {[%clk 0:02:27]} 20. Nxc4 {[%clk 0:02:23]}  Qxe2 {[%clk 0:02:24]} 21. Rxe2 {[%clk 0:02:24]}  Rd7 {[%clk 0:02:22]} 22. Kf1 {[%clk 0:02:13]}  Rfd8 {[%clk 0:02:21]} 23. Ke1 {[%clk 0:02:13]}  Ne4 {[%clk 0:02:20]} 24. f3 {[%clk 0:02:10]}  Nc5 {[%clk 0:02:01]} 25. Rd2 {[%clk 0:02:07]}  Rxd2 {[%clk 0:01:59]} 26. Nxd2 {[%clk 0:02:06]}  f6 {[%clk 0:01:57]} 27. Ke2 {[%clk 0:02:04]}  Kf7 {[%clk 0:01:56]} 28. Rc1 {[%clk 0:02:02]}  Nd3 {[%clk 0:01:50]} 29. Rc3 {[%clk 0:01:58]}  Nb4 {[%clk 0:01:48]} 30. a3 {[%clk 0:01:54]}  Nd5 {[%clk 0:01:49]} 31. Rd3 {[%clk 0:01:52]}  Ke7 {[%clk 0:01:39]} 32. g3 {[%clk 0:01:50]}  Rc8 {[%clk 0:01:21]} 33. e4 {[%clk 0:01:47]}  Nb6 {[%clk 0:01:21]} 34. f4 {[%clk 0:01:43]}  c5 {[%clk 0:01:17]} 35. Ke3 {[%clk 0:01:26]}  Rc6 {[%clk 0:01:08]} 36. Rc3 {[%clk 0:01:15]}  Nd7 {[%clk 0:01:02]} 37. a4 {[%clk 0:01:09]}  b6 {[%clk 0:00:54]} 38. Nc4 {[%clk 0:01:03]}  Nf8 {[%clk 0:00:49]} 39. e5 {[%clk 0:01:00]}  Ne6 {[%clk 0:00:44]} 40. exf6+ {[%clk 0:00:49]}  gxf6 {[%clk 0:00:44]} 41. Nd2 {[%clk 0:00:48]}  Nd4 {[%clk 0:00:41]} 42. Nf3 {[%clk 0:00:49]}  Re6+ {[%clk 0:00:40]} 43. Kd2 {[%clk 0:00:46]}  Nxf3+ {[%clk 0:00:22]} 44. Rxf3 {[%clk 0:00:45]}  f5 {[%clk 0:00:21]} 45. h3 {[%clk 0:00:35]}  h5 {[%clk 0:00:20]} 46. Kd3 {[%clk 0:00:31]}  a6 {[%clk 0:00:18]} 47. Kc4 {[%clk 0:00:27]}  Kd6 {[%clk 0:00:13]} 48. Rd3+ {[%clk 0:00:23]}  Kc6 {[%clk 0:00:13]} 49. Kc3 {[%clk 0:00:20]}  b5 {[%clk 0:00:11]} 50. axb5+ {[%clk 0:00:21]}  axb5 {[%clk 0:00:12]} 51. Kd2 {[%clk 0:00:21]}  Rd6 {[%clk 0:00:12]} 52. Ke3 {[%clk 0:00:07]}  Rxd3+ {[%clk 0:00:11]} 53. Kxd3 {[%clk 0:00:08]}  Kd5 {[%clk 0:00:11]} 54. Ke3 {[%clk 0:00:08]}  c4 {[%clk 0:00:12]} 55. bxc4+ {[%clk 0:00:08]}  Kxc4 {[%clk 0:00:11]} 56. g4 {[%clk 0:00:05]}  fxg4 {[%clk 0:00:11]} 57. hxg4 {[%clk 0:00:05]}  hxg4 {[%clk 0:00:11]} 58. Ke4 {[%clk 0:00:05]}  b4 {[%clk 0:00:11]} 0-1


[Site "https://www.chess.com"]

[Event "Titled Tuesday Blitz November 01 Early 2022"]
[White "Han, Yichen"]
[Black "Manon-og, Ramon Jr."]
[WhiteFideId "1054430"]
[BlackFideId "5200776"]
[WhiteElo "2323"]
[BlackElo "2257"]
[Result "0-1"]
[Round "06"]
[TimeControl "180+1"]
[Date "2022.11.02"]
[WhiteClock "0:00:01"]
[BlackClock "0:00:19"]

1. a4 {[%clk 0:03:00]}  Nf6 {[%clk 0:02:59]} 2. Nf3 {[%clk 0:02:59]}  g6 {[%clk 0:02:59]} 3. g3 {[%clk 0:02:58]}  Bg7 {[%clk 0:03:00]} 4. Bg2 {[%clk 0:02:58]}  O-O {[%clk 0:03:00]} 5. O-O {[%clk 0:02:59]}  d5 {[%clk 0:03:01]} 6. b3 {[%clk 0:02:58]}  Ne4 {[%clk 0:02:59]} 7. d4 {[%clk 0:02:56]}  c5 {[%clk 0:02:58]} 8. Bb2 {[%clk 0:02:54]}  Nc6 {[%clk 0:02:58]} 9. e3 {[%clk 0:02:51]}  cxd4 {[%clk 0:02:57]} 10. exd4 {[%clk 0:02:52]}  Bg4 {[%clk 0:02:56]} 11. h3 {[%clk 0:02:50]}  Bf5 {[%clk 0:02:56]} 12. Nbd2 {[%clk 0:02:48]}  Rc8 {[%clk 0:02:54]} 13. c3 {[%clk 0:02:40]}  Na5 {[%clk 0:02:50]} 14. b4 {[%clk 0:02:35]}  Nc4 {[%clk 0:02:36]} 15. Nxc4 {[%clk 0:02:30]}  Rxc4 {[%clk 0:02:37]} 16. Nd2 {[%clk 0:02:28]}  Nxc3 {[%clk 0:02:27]} 17. Qe1 {[%clk 0:01:59]}  Rc7 {[%clk 0:02:03]} 18. Nf3 {[%clk 0:01:43]}  Ne4 {[%clk 0:01:49]} 19. Rc1 {[%clk 0:01:37]}  Rxc1 {[%clk 0:01:39]} 20. Qxc1 {[%clk 0:01:38]}  Qb6 {[%clk 0:01:39]} 21. b5 {[%clk 0:01:02]}  Rc8 {[%clk 0:01:36]} 22. Qe3 {[%clk 0:00:57]}  Rc2 {[%clk 0:01:33]} 23. Ba3 {[%clk 0:00:54]}  Rc3 {[%clk 0:01:31]} 24. Bc5 {[%clk 0:00:34]}  Rxe3 {[%clk 0:01:30]} 25. Bxb6 {[%clk 0:00:34]}  Rxf3 {[%clk 0:01:30]} 26. Bxf3 {[%clk 0:00:32]}  axb6 {[%clk 0:01:31]} 27. Rc1 {[%clk 0:00:29]}  Bxd4 {[%clk 0:01:26]} 28. Rc7 {[%clk 0:00:25]}  Bxf2+ {[%clk 0:01:02]} 29. Kg2 {[%clk 0:00:25]}  Bxg3 {[%clk 0:01:03]} 30. Rxe7 {[%clk 0:00:22]}  Bd6 {[%clk 0:00:57]} 31. Rxb7 {[%clk 0:00:22]}  Bc5 {[%clk 0:00:49]} 32. h4 {[%clk 0:00:20]}  d4 {[%clk 0:00:45]} 33. h5 {[%clk 0:00:19]}  gxh5 {[%clk 0:00:45]} 34. Rc7 {[%clk 0:00:18]}  d3 {[%clk 0:00:39]} 35. a5 {[%clk 0:00:18]}  bxa5 {[%clk 0:00:36]} 36. Bxh5 {[%clk 0:00:16]}  d2 {[%clk 0:00:30]} 37. Bxf7+ {[%clk 0:00:09]}  Kh8 {[%clk 0:00:28]} 38. Bh5 {[%clk 0:00:10]}  Be3 {[%clk 0:00:23]} 39. Rf7 {[%clk 0:00:06]}  Bg6 {[%clk 0:00:19]} 40. Bxg6 {[%clk 0:00:05]}  d1=Q {[%clk 0:00:18]} 41. Rxh7+ {[%clk 0:00:05]}  Kg8 {[%clk 0:00:19]} 42. Bxe4 {[%clk 0:00:06]}  Qg4+ {[%clk 0:00:17]} 43. Kf1 {[%clk 0:00:05]}  Qxe4 {[%clk 0:00:18]} 44. Rd7 {[%clk 0:00:04]}  Qf3+ {[%clk 0:00:17]} 45. Ke1 {[%clk 0:00:05]}  Qf2+ {[%clk 0:00:18]} 46. Kd1 {[%clk 0:00:05]}  Qf1+ {[%clk 0:00:18]} 47. Kc2 {[%clk 0:00:06]}  Qxb5 {[%clk 0:00:18]} 48. Rd8+ {[%clk 0:00:06]}  Kf7 {[%clk 0:00:18]} 49. Rd3 {[%clk 0:00:06]}  Qc4+ {[%clk 0:00:17]} 50. Rc3 {[%clk 0:00:06]}  Qe2+ {[%clk 0:00:16]} 51. Kb3 {[%clk 0:00:06]}  Qb5+ {[%clk 0:00:16]} 52. Kc2 {[%clk 0:00:06]}  Bd4 {[%clk 0:00:17]} 53. Rf3+ {[%clk 0:00:06]}  Ke6 {[%clk 0:00:17]} 54. Rd3 {[%clk 0:00:06]}  Kd5 {[%clk 0:00:17]} 55. Rh3 {[%clk 0:00:06]}  Kc4 {[%clk 0:00:17]} 56. Kd1 {[%clk 0:00:02]}  Qb2 {[%clk 0:00:16]} 57. Rf3 {[%clk 0:00:01]}  a4 {[%clk 0:00:16]} 58. Ke1 {[%clk 0:00:02]}  a3 {[%clk 0:00:17]} 59. Kf1 {[%clk 0:00:01]}  a2 {[%clk 0:00:17]} 60. Ra3 {[%clk 0:00:02]}  Qxa3 {[%clk 0:00:16]} 61. Kg2 {[%clk 0:00:02]}  a1=Q {[%clk 0:00:17]} 62. Kh2 {[%clk 0:00:02]}  Q1b2+ {[%clk 0:00:18]} 63. Kh1 {[%clk 0:00:01]}  Qaa1# {[%clk 0:00:19]} 0-1


[Site "https://www.chess.com"]